fUSD/lending_fUSD_20260418
["ID","MTS","AMOUNT","RATE_DAILY","PERIOD"]
[420763248,1776526217318,-505.27739928,0.00043946,120]
[420763249,1776526217402,-500.0,0.00043946,120]
[420763250,1776526217487,-506.2768962,0.00043946,120]
[420763251,1776526217575,-500.0,0.00043946,120]
[420763252,1776526217662,-500.0,0.00043946,120]
[420763253,1776526217747,-500.0,0.00043946,120]
[420763254,1776526217839,-500.0,0.00043946,120]
[420763255,1776526217925,-507.62134479,0.00043946,120]
[420763256,1776526218012,-500.0,0.00043946,120]
[420763257,1776526218094,-194.50162921,0.00043946,120]
[420763258,1776526218177,-510.43706301,0.00043946,120]
[420763259,1776526218263,-500.0,0.00043946,120]
[420763260,1776526218349,-501.17703162,0.00043946,120]
[420763261,1776526218435,-500.0,0.00043946,120]
[420763262,1776526218521,-500.0,0.00043946,120]
[420763263,1776526218606,-500.0,0.00043946,120]
[420763264,1776526218692,-521.27833308,0.00043946,120]
[420763265,1776526218777,-500.0,0.00043946,120]
[420763266,1776526218865,-500.0,0.00043946,120]
[420763267,1776526218951,-517.15383251,0.00043946,120]
[420763268,1776526219038,-500.0,0.00043946,120]
[420763269,1776526219121,-500.0,0.00043946,120]
[420763270,1776526219203,-500.0,0.00043946,120]
[420763271,1776526219285,-252.74842443,0.00043946,120]
[420763272,1776526219371,-500.0,0.00043946,120]
[420763273,1776526219455,-506.74821674,0.00043946,120]
[420763274,1776526219543,-500.0,0.00043946,120]
[420763275,1776526219633,-500.0,0.00043946,120]
[420763276,1776526219720,-500.0,0.00043946,120]
[420763277,1776526219807,-592.2827936,0.00043946,120]
[420763278,1776526219895,-500.0,0.00043946,120]
[420763279,1776526219979,-500.0,0.00043946,120]
[420763280,1776526220066,-500.0,0.00043946,120]
[420763281,1776526220151,-523.86456438,0.00043946,120]
[420763282,1776526220236,-500.0,0.00043946,120]
[420763283,1776526220319,-500.0,0.00043946,120]
[420763284,1776526220403,-500.0,0.00043946,120]
[420763285,1776526220488,-500.0,0.00043946,120]
[420763286,1776526220574,-500.0,0.00043946,120]
[420763287,1776526220659,-500.0,0.00043946,120]
[420763288,1776526220747,-236.34446706,0.00043946,120]
[420763289,1776526220833,-500.0,0.00043946,120]
[420763290,1776526220921,-210.61229602,0.00043946,120]
[420763291,1776526221009,-500.0,0.00043946,120]
[420763292,1776526221098,-500.0,0.00043946,120]
[420763293,1776526221185,-500.0,0.00043946,120]
[420763294,1776526221271,-220.01949594,0.00043946,120]
[420763295,1776526221356,-611.3766652,0.00043946,120]
[420763296,1776526221440,-500.0,0.00043946,120]
[420763297,1776526221526,-501.59403185,0.00043946,120]
[420763298,1776526221613,-500.0,0.00043946,120]
[420763299,1776526221698,-521.07093238,0.00043946,120]
[420763300,1776526221787,-500.0,0.00043946,120]
[420763301,1776526221875,-501.62958513,0.00043946,120]
[420763302,1776526221962,-500.0,0.00043946,120]
[420763303,1776526222052,-500.0,0.00043946,120]
[420763304,1776526222145,-500.0,0.00043946,120]
[420763305,1776526222235,-517.52678689,0.00043946,120]
[420763306,1776526222326,-500.0,0.00043946,120]
[420763307,1776526222414,-500.0,0.00043946,120]
[420763308,1776526222504,-500.0,0.00043946,120]
[420763309,1776526222596,-500.0,0.00043946,120]
[420763310,1776526222688,-312.81479764,0.00043946,120]
[420763311,1776526222780,-500.0,0.00043946,120]
[420763312,1776526222875,-506.25489703,0.00043946,120]
[420763313,1776526222968,-500.0,0.00043946,120]
[420763314,1776526223060,-559.90751244,0.00043946,120]
[420763315,1776526223157,-158.78738141,0.00043946,120]
[420763316,1776526223247,-500.0,0.00043946,120]
[420763317,1776526223336,-500.0,0.00043946,120]
[420763318,1776526223423,-500.0,0.00043946,120]
[420763319,1776526223511,-500.0,0.00043946,120]
[420763320,1776526223599,-526.97131663,0.00043946,120]
[420763321,1776526223684,-500.0,0.00043946,120]
[420763322,1776526224028,-500.0,0.00043946,120]
[420763323,1776526224143,-500.0,0.00043946,120]
[420763324,1776526224229,-500.0,0.00043946,120]
[420763325,1776526224314,-500.0,0.00043946,120]
[420763326,1776526224400,-500.0,0.00043946,120]
[420763327,1776526224489,-500.0,0.00043946,120]
[420763328,1776526224585,-500.0,0.00043946,120]
[420763329,1776526224676,-153.99066705,0.00043946,120]
[420763330,1776526224767,-500.0,0.00043946,120]
[420763331,1776526224857,-500.87503046,0.00043946,120]
[420763332,1776526224946,-500.0,0.00043946,120]
[420763333,1776526225033,-500.0,0.00043946,120]
[420763334,1776526225120,-500.0,0.00043946,120]
[420763335,1776526225207,-525.61950048,0.00043946,120]
[420763336,1776526225291,-500.0,0.00043946,120]
[420763337,1776526225376,-503.38844442,0.00043946,120]
[420763338,1776526225463,-500.0,0.00043946,120]
[420763339,1776526225551,-500.79510607,0.00043946,120]
[420763340,1776526225639,-178.43603831,0.00043946,120]
[420763341,1776526225728,-500.0,0.00043946,120]
[420763342,1776526225818,-505.30092374,0.00043946,120]
[420763343,1776526225909,-500.0,0.00043946,120]
[420763344,1776526226002,-544.70119908,0.00043946,120]
[420763345,1776526226094,-500.0,0.00043946,120]
[420763346,1776526226184,-505.25434202,0.00043946,120]
[420763347,1776526226270,-500.0,0.00043946,120]
[420763348,1776526226357,-500.0,0.00043946,120]
[420763349,1776526226441,-500.0,0.00043946,120]
[420763350,1776526226529,-500.0,0.00043946,120]
[420763351,1776526226617,-506.61881421,0.00043946,120]
[420763352,1776526226706,-510.02998794,0.00043946,120]
[420763353,1776526226791,-500.0,0.00043946,120]
[420763354,1776526226879,-500.0,0.00043946,120]
[420763355,1776526226965,-500.0,0.00043946,120]
[420763356,1776526227054,-500.0,0.00043946,120]
[420763357,1776526227143,-517.03025708,0.00043946,120]
[420763358,1776526227228,-502.36499146,0.00043946,120]
[420763359,1776526227311,-582.31501596,0.00043946,120]
[420763360,1776526227394,-532.72512397,0.00043946,120]
[420763361,1776526227485,-500.0,0.00043946,120]
[420763362,1776526227573,-500.0,0.00043946,120]
[420763363,1776526227660,-500.0,0.00043946,120]
[420763364,1776526227747,-240.44417289,0.00043946,120]
[420763365,1776526227834,-501.15457031,0.00043946,120]
[420763366,1776526227920,-500.0,0.00043946,120]
[420763367,1776526228007,-500.0,0.00043946,120]
[420763368,1776526228090,-500.0,0.00043946,120]
[420763369,1776526228174,-197.47326058,0.00043946,120]
[420763370,1776526228256,-500.0,0.00043946,120]
[420763371,1776526228342,-501.88448956,0.00043946,120]
[420763372,1776526228423,-511.51058881,0.00043946,120]
[420763373,1776526228506,-500.0,0.00043946,120]
[420763374,1776526228590,-500.0,0.00043946,120]
[420763375,1776526228679,-501.24112968,0.00043946,120]
[420763376,1776526228766,-500.49904242,0.00043946,120]
[420763377,1776526228852,-500.0,0.00043946,120]
[420763378,1776526228935,-501.37791813,0.00043946,120]
[420763379,1776526229019,-500.0,0.00043946,120]
[420763380,1776526229101,-500.0,0.00043946,120]
[420763381,1776526229188,-500.0,0.00043946,120]
[420763382,1776526229270,-500.0,0.00043946,120]
[420763383,1776526229354,-500.0,0.00043946,120]
[420763384,1776526229437,-500.0,0.00043946,120]
[420763385,1776526229520,-313.18986337,0.00043946,120]
[420763386,1776526229603,-500.0,0.00043946,120]
[420763387,1776526229685,-500.0,0.00043946,120]
[420763388,1776526229769,-500.0,0.00043946,120]
[420763389,1776526229852,-502.49512074,0.00043946,120]
[420763390,1776526229935,-500.0,0.00043946,120]
[420763391,1776526230021,-500.0,0.00043946,120]
[420763392,1776526230103,-501.44676416,0.00043946,120]
[420763393,1776526230185,-500.0,0.00043946,120]
[420763394,1776526230266,-500.0,0.00043946,120]
[420763395,1776526230353,-500.0,0.00043946,120]
[420763396,1776526230438,-482.95074376,0.00043946,120]
[420763397,1776526230526,-526.84410444,0.00043946,120]
[420763398,1776526230612,-500.0,0.00043946,120]
[420763399,1776526230697,-500.93085419,0.00043946,120]
[420763400,1776526230782,-500.0,0.00043946,120]
[420763401,1776526230866,-537.07399624,0.00043946,120]
[420763402,1776526230953,-500.0,0.00043946,120]
[420763403,1776526231041,-500.0,0.00043946,120]
[420763404,1776526231128,-535.59117604,0.00043946,120]
[420763405,1776526231212,-504.34711961,0.00043946,120]
[420763407,1776526231298,-500.0,0.00043946,120]
[420763408,1776526231382,-500.0,0.00043946,120]
[420763413,1776526231467,-500.0,0.00043946,120]
[420763414,1776526231556,-500.0,0.00043946,120]
[420763415,1776526231647,-521.601095,0.00043946,120]
[420763416,1776526231734,-500.0,0.00043946,120]
[420763417,1776526231821,-500.0,0.00043946,120]
[420763423,1776526231908,-530.16689417,0.00043946,120]
[420763429,1776526231992,-500.0,0.00043946,120]
[420763430,1776526232074,-512.81444681,0.00043946,120]
[420763431,1776526232156,-500.0,0.00043946,120]
[420763432,1776526232242,-500.63157984,0.00043946,120]
[420763433,1776526232324,-500.0,0.00043946,120]
[420763434,1776526232406,-500.0,0.00043946,120]
[420763435,1776526232489,-500.93147214,0.00043946,120]
[420763436,1776526232574,-499.49493026,0.00043946,120]
[420763437,1776526232658,-500.0,0.00043946,120]
[420763438,1776526232743,-581.03263013,0.00043946,120]
[420763439,1776526232826,-501.9063075,0.00043946,120]
[420763440,1776526232910,-500.0,0.00043946,120]
[420763441,1776526232995,-510.64968951,0.00043946,120]
[420763442,1776526233519,-504.85237089,0.00043946,120]
[420763443,1776526233604,-500.0,0.00043946,120]
[420763444,1776526233689,-500.0,0.00043946,120]
[420763445,1776526233771,-500.0,0.00043946,120]
[420763446,1776526233854,-500.0,0.00043946,120]
[420763447,1776526233941,-514.16904376,0.00043946,120]
[420763448,1776526234027,-505.22255873,0.00043946,120]
[420763449,1776526234108,-500.0,0.00043946,120]
[420763450,1776526234191,-500.0,0.00043946,120]
[420763451,1776526234274,-500.0,0.00043946,120]
[420763452,1776526234358,-500.0,0.00043946,120]
[420763453,1776526234439,-271.33186715,0.00043946,120]
[420763454,1776526234523,-500.0,0.00043946,120]
[420763455,1776526234608,-512.20125203,0.00043946,120]
[420763456,1776526234694,-500.0,0.00043946,120]
[420763457,1776526234777,-8662.52812298,0.00043946,120]
[420763458,1776526234860,-500.0,0.00043946,120]
[420763459,1776526234947,-500.0,0.00043946,120]
[420763460,1776526235031,-500.0,0.00043946,120]
[420763461,1776526235115,-500.0,0.00043946,120]
[420763462,1776526235197,-263.49603445,0.00043946,120]
[420763463,1776526235281,-507.17364158,0.00043946,120]
[420763464,1776526235361,-500.0,0.00043946,120]
[420763465,1776526235441,-500.0,0.00043946,120]
[420763466,1776526235524,-500.0,0.00043946,120]
[420763467,1776526235608,-500.0,0.00043946,120]
[420763468,1776526235692,-436.68680586,0.00043946,120]
[420763469,1776526235777,-558.18486003,0.00043946,120]
[420763470,1776526235866,-520.57316743,0.00043946,120]
[420763471,1776526235953,-500.0,0.00043946,120]
[420763472,1776526236034,-503.03457949,0.00043946,120]
[420763473,1776526236117,-509.31942105,0.00043946,120]
[420763474,1776526236199,-500.0,0.00043946,120]
[420763475,1776526236285,-500.90486295,0.00043946,120]
[420763476,1776526236367,-500.0,0.00043946,120]
[420763477,1776526236449,-500.0,0.00043946,120]
[420763478,1776526236535,-500.0,0.00043946,120]
[420763479,1776526236619,-500.0,0.00043946,120]
[420763480,1776526236704,-500.0,0.00043946,120]
[420763481,1776526236789,-517.83255011,0.00043946,120]
[420763482,1776526236875,-500.0,0.00043946,120]
[420763483,1776526236958,-501.13592523,0.00043946,120]
[420763484,1776526237042,-500.0,0.00043946,120]
[420763485,1776526237129,-500.0,0.00043946,120]
[420763486,1776526237214,-500.0,0.00043946,120]
[420763487,1776526237299,-500.0,0.00043946,120]
[420763488,1776526237385,-261.7829955,0.00043946,120]
[420763489,1776526237472,-500.0,0.00043946,120]
[420763490,1776526237559,-500.0,0.00043946,120]
[420763491,1776526237648,-500.0,0.00043946,120]
[420763492,1776526237734,-500.0,0.00043946,120]
[420763493,1776526237821,-500.0,0.00043946,120]
[420763494,1776526237907,-504.26494208,0.00043946,120]
[420763495,1776526237996,-500.0,0.00043946,120]
[420763496,1776526238084,-500.0,0.00043946,120]
[420763497,1776526238171,-364.41940718,0.00043946,120]
[420763498,1776526238258,-500.0,0.00043946,120]
[420763499,1776526238341,-504.79648821,0.00043946,120]
[420763500,1776526238425,-500.0,0.00043946,120]
[420763501,1776526238511,-500.0,0.00043946,120]
[420763502,1776526238598,-501.02540703,0.00043946,120]
[420763503,1776526238683,-500.0,0.00043946,120]
[420763504,1776526238771,-501.37231548,0.00043946,120]
[420763505,1776526238856,-900.0,0.00043946,120]
[420763506,1776526238943,-500.0,0.00043946,120]
[420763507,1776526239028,-500.0,0.00043946,120]
[420763508,1776526239110,-502.3758833,0.00043946,120]
[420763509,1776526239195,-500.0,0.00043946,120]
[420763510,1776526239280,-500.0,0.00043946,120]
[420763520,1776526239366,-500.0,0.00043946,120]
[420763527,1776526239451,-500.0,0.00043946,120]
[420763528,1776526239537,-505.43764353,0.00043946,120]
[420763532,1776526239622,-500.0,0.00043946,120]
[420763541,1776526239706,-500.0,0.00043946,120]
[420763543,1776526239791,-500.0,0.00043946,120]
[420763544,1776526239878,-500.02265102,0.00043946,120]
[420763545,1776526239966,-500.0,0.00043946,120]
[420763546,1776526240050,-500.0,0.00043946,120]
[420763547,1776526240135,-501.08326821,0.00043946,120]
[420763548,1776526240222,-500.0,0.00043946,120]
[420763556,1776526240307,-557.99353519,0.00043946,120]
[420763565,1776526240393,-500.0,0.00043946,120]
[420763573,1776526240476,-501.60611997,0.00043946,120]
[420763574,1776526240563,-500.0,0.00043946,120]
[420763575,1776526240653,-216.7483771,0.00043946,120]
[420763576,1776526240738,-648.38172088,0.00043946,120]
[420763577,1776526240823,-406.50942675,0.00043946,120]
[420763578,1776526240909,-551.7486804,0.00043946,120]
[420763579,1776526240994,-502.41657231,0.00043946,120]
[420763580,1776526241079,-500.0,0.00043946,120]
[420763581,1776526241162,-509.64698396,0.00043946,120]
[420763582,1776526241244,-500.0,0.00043946,120]
[420763583,1776526241326,-511.96031655,0.00043946,120]
[420763584,1776526241412,-511.48613845,0.00043946,120]
[420763585,1776526241497,-619.26961403,0.00043946,120]
[420763586,1776526241585,-500.0,0.00043946,120]
[420763587,1776526241672,-517.37961102,0.00043946,120]
[420763588,1776526241758,-500.0,0.00043946,120]
[420763589,1776526241845,-500.0,0.00043946,120]
[420763590,1776526241935,-500.0,0.00043946,120]
[420763591,1776526242021,-500.0,0.00043946,120]
[420763592,1776526242109,-500.0,0.00043946,120]
[420763593,1776526242194,-308.44040363,0.00043946,120]
[420763594,1776526242283,-323.82150884,0.00043946,120]
[420763602,1776526242623,-500.0,0.00043946,120]
[420763603,1776526242742,-178.35019836,0.00043946,120]
[420763604,1776526242829,-500.0,0.00043946,120]
[420763605,1776526242917,-513.0722017,0.00043946,120]
[420763606,1776526243002,-500.0,0.00043946,120]
[420763607,1776526243086,-500.0,0.00043946,120]
[420763608,1776526243170,-500.0,0.00043946,120]
[420763610,1776526243256,-631.11425789,0.00043946,120]
[420763611,1776526243342,-500.0,0.00043946,120]
[420763612,1776526243424,-500.0,0.00043946,120]
[420763618,1776526243510,-500.0,0.00043946,120]
[420763626,1776526243601,-500.0,0.00043946,120]
[420763630,1776526243694,-500.0,0.00043946,120]
[420763631,1776526243786,-500.0,0.00043946,120]
[420763632,1776526243876,-335.31,0.00043946,120]
[420763633,1776526243967,-500.0,0.00043946,120]
[420763634,1776526244056,-574.64840358,0.00043946,120]
[420763635,1776526244142,-547.98649593,0.00043946,120]
[420763636,1776526244228,-508.32944794,0.00043946,120]
[420763637,1776526244309,-500.0,0.00043946,120]
[420763638,1776526244391,-512.90109903,0.00043946,120]
[420763639,1776526244473,-506.02830537,0.00043946,120]
[420763640,1776526244556,-500.0,0.00043946,120]
[420763641,1776526244639,-500.0,0.00043946,120]
[420763642,1776526244723,-500.0,0.00043946,120]
[420763643,1776526244808,-514.59510856,0.00043946,120]
[420763644,1776526244902,-500.0,0.00043946,120]
[420763645,1776526244992,-500.0,0.00043946,120]
[420763646,1776526245077,-609.03462871,0.00043946,120]
[420763647,1776526245163,-500.0,0.00043946,120]
[420763648,1776526245248,-331.36507798,0.00043946,120]
[420763649,1776526245329,-500.0,0.00043946,120]
[420763650,1776526245412,-500.0,0.00043946,120]
[420763651,1776526245495,-500.0,0.00043946,120]
[420763652,1776526245580,-500.0,0.00043946,120]
[420763655,1776526245667,-500.0,0.00043946,120]
[420763656,1776526245752,-500.0,0.00043946,120]
[420763657,1776526245838,-500.0,0.00043946,120]
[420763658,1776526245924,-270.88652436,0.00043946,120]
[420763659,1776526246010,-500.0,0.00043946,120]
[420763660,1776526246092,-500.0,0.00043946,120]
[420763661,1776526246173,-500.0,0.00043946,120]
[420763662,1776526246255,-500.0,0.00043946,120]
[420763665,1776526246342,-394.98599309,0.00043946,120]
[420763666,1776526246426,-500.0,0.00043946,120]
[420763667,1776526246509,-500.0,0.00043946,120]
[420763668,1776526246593,-500.0,0.00043946,120]
[420763669,1776526246676,-500.0,0.00043946,120]
[420763670,1776526246758,-500.0,0.00043946,120]
[420763671,1776526246841,-500.0,0.00043946,120]
[420763672,1776526246925,-500.0,0.00043946,120]
[420763673,1776526247008,-500.0,0.00043946,120]
[420763674,1776526247090,-641.65215221,0.00043946,120]
[420763675,1776526247171,-500.0,0.00043946,120]
[420763676,1776526247252,-500.0,0.00043946,120]
[420763677,1776526247333,-500.0,0.00043946,120]
[420763678,1776526247413,-504.14414514,0.00043946,120]
[420763679,1776526247493,-500.0,0.00043946,120]
[420763680,1776526247576,-500.0,0.00043946,120]
[420763681,1776526247659,-500.0,0.00043946,120]
[420763682,1776526247743,-500.0,0.00043946,120]
[420763683,1776526247833,-500.0,0.00043946,120]
[420763684,1776526247920,-500.0,0.00043946,120]
[420763685,1776526248005,-500.0,0.00043946,120]
[420763686,1776526248090,-523.92466106,0.00043946,120]
[420763687,1776526248172,-500.0,0.00043946,120]
[420763688,1776526248254,-500.0,0.00043946,120]
[420763689,1776526248336,-500.0,0.00043946,120]
[420763690,1776526248419,-500.0,0.00043946,120]
[420763691,1776526248500,-500.0,0.00043946,120]
[420763692,1776526248590,-500.0,0.00043946,120]
[420763693,1776526248676,-329.4,0.00043946,120]
[420763694,1776526248758,-500.0,0.00043946,120]
[420763695,1776526248839,-505.451372,0.00043946,120]
[420763696,1776526248925,-500.0,0.00043946,120]
[420763697,1776526249009,-500.0,0.00043946,120]
[420763698,1776526249091,-349.32160602,0.00043946,120]
[420763699,1776526249175,-500.0,0.00043946,120]
[420763700,1776526249257,-198.54,0.00043946,120]
[420763701,1776526249341,-500.0,0.00043946,120]
[420763702,1776526249421,-500.0,0.00043946,120]
[420763703,1776526249503,-503.09774249,0.00043946,120]
[420763704,1776526249588,-500.0,0.00043946,120]
[420763705,1776526249674,-500.0,0.00043946,120]
[420763706,1776526249760,-501.20296076,0.00043946,120]
[420763707,1776526249847,-500.0,0.00043946,120]
[420763708,1776526249932,-500.0,0.00043946,120]
[420763709,1776526250017,-500.0,0.00043946,120]
[420763710,1776526250100,-500.0,0.00043946,120]
[420763711,1776526250183,-288.92840312,0.00043946,120]
[420763712,1776526250265,-603.37079434,0.00043946,120]
[420763713,1776526250347,-500.0,0.00043946,120]
[420763714,1776526250434,-500.0,0.00043946,120]
[420763715,1776526250519,-500.0,0.00043946,120]
[420763716,1776526250606,-505.5031903,0.00043946,120]
[420763717,1776526250693,-511.64707189,0.00043946,120]
[420763718,1776526250779,-500.0,0.00043946,120]
[420763719,1776526250862,-503.95085377,0.00043946,120]
[420763720,1776526250947,-500.81278044,0.00043946,120]
[420763721,1776526251029,-500.0,0.00043946,120]
[420763722,1776526251113,-512.61334758,0.00043946,120]
[420763723,1776526251196,-500.0,0.00043946,120]
[420763724,1776526251277,-500.0,0.00043946,120]
[420763725,1776526251357,-500.0,0.00043946,120]
[420763726,1776526251438,-500.0,0.00043946,120]
[420763727,1776526251556,-500.0,0.00043946,120]
[420763728,1776526251640,-500.0,0.00043946,120]
[420763729,1776526251721,-254.66115814,0.00043946,120]
[420763730,1776526251800,-500.0,0.00043946,120]
[420763731,1776526251884,-500.0,0.00043946,120]
[420763732,1776526251967,-500.0,0.00043946,120]
[420763733,1776526252050,-500.0,0.00043946,120]
[420763734,1776526252132,-500.0,0.00043946,120]
[420763735,1776526252213,-500.0,0.00043946,120]
[420763736,1776526252297,-500.0,0.00043946,120]
[420763737,1776526252392,-500.0,0.00043946,120]
[420763738,1776526252479,-500.0,0.00043946,120]
[420763739,1776526252566,-500.0,0.00043946,120]
[420763740,1776526252653,-500.0,0.00043946,120]
[420763741,1776526252739,-500.0,0.00043946,120]
[420763742,1776526252830,-500.0,0.00043946,120]
[420763743,1776526252923,-500.0,0.00043946,120]
[420763744,1776526253013,-500.0,0.00043946,120]
[420763745,1776526253106,-500.0,0.00043946,120]
[420763746,1776526253193,-500.0,0.00043946,120]
[420763747,1776526253280,-500.0,0.00043946,120]
[420763748,1776526253364,-500.0,0.00043946,120]
[420763749,1776526253451,-509.18512012,0.00043946,120]
[420763750,1776526253539,-152.75,0.00043946,120]
[420763751,1776526253624,-500.0,0.00043946,120]
[420763752,1776526253708,-500.0,0.00043946,120]
[420763753,1776526253789,-505.00650613,0.00043946,120]
[420763754,1776526253875,-505.04302844,0.00043946,120]
[420763755,1776526253959,-500.0,0.00043946,120]
[420763756,1776526254042,-503.60447074,0.00043946,120]
[420763757,1776526254120,-500.0,0.00043946,120]
[420763758,1776526254198,-500.0,0.00043946,120]
[420763759,1776526254274,-500.0,0.00043946,120]
[420763760,1776526254352,-549.67675738,0.00043946,120]
[420763761,1776526254428,-500.0,0.00043946,120]
[420763762,1776526254507,-501.40490197,0.00043946,120]
[420763763,1776526254590,-500.0,0.00043946,120]
[420763764,1776526254672,-500.0,0.00043946,120]
[420763765,1776526254757,-500.0,0.00043946,120]
[420763766,1776526254843,-286.68593394,0.00043946,120]
[420763767,1776526254927,-1046.55,0.00043946,120]
[420763768,1776526255010,-1046.55,0.00043946,120]
[420763769,1776526255089,-1046.55,0.00043946,120]
[420763770,1776526255172,-1046.55,0.00043946,120]
[420763771,1776526255252,-1046.55,0.00043946,120]
[420763772,1776526255332,-1046.55,0.00043946,120]
[420763773,1776526255412,-501.64895317,0.00043946,120]
[420763774,1776526255491,-1046.55,0.00043946,120]
[420763775,1776526255573,-500.0,0.00043946,120]
[420763776,1776526255657,-1046.55,0.00043946,120]
[420763777,1776526255740,-504.61485285,0.00043946,120]
[420763778,1776526255822,-1046.55,0.00043946,120]
[420763779,1776526255906,-1046.55,0.00043946,120]
[420763780,1776526255992,-1046.55,0.00043946,120]
[420763781,1776526256073,-1046.55,0.00043946,120]
[420763782,1776526256154,-1046.55,0.00043946,120]
[420763783,1776526256233,-1046.55,0.00043946,120]
[420763784,1776526256310,-1046.55,0.00043946,120]
[420763785,1776526256389,-500.70929364,0.00043946,120]
[420763786,1776526256466,-1046.55,0.00043946,120]
[420763787,1776526256549,-1046.55,0.00043946,120]
[420763788,1776526256630,-1046.55,0.00043946,120]
[420763789,1776526256710,-1046.55,0.00043946,120]
[420763790,1776526256792,-1046.55,0.00043946,120]
[420763791,1776526256876,-1046.55,0.00043946,120]
[420763792,1776526256960,-1046.55,0.00043946,120]
[420763793,1776526257043,-500.96846949,0.00043946,120]
[420763794,1776526257123,-1046.55,0.00043946,120]
[420763795,1776526257201,-1046.65024612,0.00043946,120]
[420763796,1776526257281,-500.0,0.00043946,120]
[420763797,1776526257361,-534.99,0.00043946,120]
[420763798,1776526257440,-500.0,0.00043946,120]
[420763799,1776526257548,-329.24480327,0.00043946,120]
[420763800,1776526257651,-500.0,0.00043946,120]
[420763801,1776526257761,-502.05826689,0.00043946,120]
[420763802,1776526257867,-500.0,0.00043946,120]
[420763803,1776526257967,-528.03466562,0.00043946,120]
[420763804,1776526258065,-500.0,0.00043946,120]
[420763805,1776526258171,-500.0,0.00043946,120]
[420763806,1776526258262,-500.0,0.00043946,120]
[420763807,1776526258357,-500.0,0.00043946,120]
[420763808,1776526258452,-486.58434575,0.00043946,120]
[420763809,1776526258556,-501.11187588,0.00043946,120]
[420763810,1776526258663,-502.17304384,0.00043946,120]
[420763811,1776526258772,-500.0,0.00043946,120]
[420763812,1776526258881,-507.52511846,0.00043946,120]
[420763813,1776526258986,-500.0,0.00043946,120]
[420763814,1776526259087,-502.01077565,0.00043946,120]
[420763815,1776526259186,-500.0,0.00043946,120]
[420763816,1776526259282,-500.0,0.00043946,120]
[420763817,1776526259378,-500.0,0.00043946,120]
[420763818,1776526259476,-500.0,0.00043946,120]
[420763819,1776526259574,-520.87298182,0.00043946,120]
[420763820,1776526261606,-500.0,0.00043946,120]
[420763821,1776526261725,-500.0,0.00043946,120]
[420763822,1776526261809,-501.51168412,0.00043946,120]
[420763823,1776526261893,-500.0,0.00043946,120]
[420763824,1776526261973,-500.0,0.00043946,120]
[420763825,1776526262050,-500.0,0.00043946,120]
[420763826,1776526262124,-500.0,0.00043946,120]
[420763827,1776526262199,-500.0,0.00043946,120]
[420763828,1776526262274,-4010.14813303,0.00043946,120]
[420763829,1776526262353,-500.0,0.00043946,120]
[420763830,1776526262432,-500.0,0.00043946,120]
[420763831,1776526262511,-500.0,0.00043946,120]
[420763832,1776526262597,-500.0,0.00043946,120]
[420763833,1776526262681,-500.0,0.00043946,120]
[420763834,1776526262762,-500.0,0.00043946,120]
[420763835,1776526262843,-500.0,0.00043946,120]
[420763836,1776526262926,-500.0,0.00043946,120]
[420763837,1776526263011,-503.67931206,0.00043946,120]
[420763838,1776526263091,-500.0,0.00043946,120]